bitfinex-derivatives/quotes_SOLF0:USTF0_20260202
["timestamp","ask_amount","ask_price","bid_price","bid_amount"]
[1770014676576,139.3944,100.55,100.44,148.5078]
[1770014676766,159.81351621,100.58,100.47,139.4997]
[1770014676967,139.3368,100.6,100.49,139.4741]
[1770014677273,139.3952,100.55,100.44,139.5409]
[1770014677471,20.45321621,100.53,100.42,8.9722]
[1770014677670,139.4639,100.5,100.4,139.6]
[1770014677870,139.406,100.55,100.44,139.5432]
[1770014678074,139.4229,100.53,100.43,139.5588]
[1770014678280,139.4096,100.54,100.44,209.0301999]
[1770014678480,8.9575,100.59,100.49,139.4774]
[1770014678674,159.77601621,100.61,100.5,139.4589]
[1770014678973,139.3671,100.57,100.47,69.4864999]
[1770014679175,139.3827,100.56,100.47,69.4864999]
[1770014679373,139.4638,100.5,100.42,69.66746711]
[1770014679573,168.87101621,100.51,100.42,69.66746711]
[1770014679773,20.45321621,100.51,100.42,69.66746711]
[1770014679977,139.4565,100.51,100.42,69.66746711]
[1770014680180,139.4365,100.52,100.42,69.66746711]
[1770014680478,139.3938,100.56,100.45,139.5238]
[1770014680678,139.3692,100.57,100.46,139.5173]
[1770014680874,139.3621,100.58,100.47,139.5042]
[1770014681183,139.3621,100.58,100.45,69.66753914]
[1770014681184,139.3816,100.56,100.45,69.66753914]
[1770014681476,139.382,100.56,100.45,69.66753914]
[1770014681677,139.381,100.56,100.45,78.63743914]
[1770014681985,139.4183,100.54,100.45,69.66753914]
[1770014682287,148.3081,100.59,100.47,209.56456598]
[1770014682579,139.3551,100.58,100.47,209.56626598]
[1770014682782,139.4238,100.53,100.42,218.60046598]
[1770014682980,139.4155,100.54,100.42,218.60046598]
[1770014683282,139.4526,100.51,100.42,70.06116598]
[1770014683476,139.464,100.5,100.39,139.6127]
[1770014683779,139.464,100.5,100.38,219.41890509]
[1770014683780,148.4293,100.5,100.38,219.41890509]
[1770014683975,20.45321621,100.51,100.4,139.5994]
[1770014684172,20.45321621,100.51,100.42,139.5714]
[1770014684470,139.4294,100.53,100.43,70.82551874]
[1770014684676,139.4113,100.54,100.44,70.82551874]
[1770014685085,159.88661621,100.53,100.42,139.5717]
[1770014685287,139.4506,100.51,100.4,210.45562034]
[1770014685479,139.4639,100.5,100.4,70.86272034]
[1770014685679,139.4506,100.51,100.41,139.588]
[1770014685680,8.9653,100.51,100.41,139.588]
[1770014685879,148.4256,100.51,100.4,210.46442034]
[1770014686074,139.4367,100.52,100.41,139.5878]
[1770014686585,139.4367,100.52,100.4,210.46442034]
[1770014686586,8.9655,100.5,100.4,219.43882034]
[1770014686884,139.4541,100.51,100.4,219.43882034]
[1770014687182,139.4724,100.5,100.41,70.94229569]
[1770014687386,139.4724,100.5,100.4,70.94224701]
[1770014687579,159.83501621,100.56,100.45,210.47164701]
[1770014687879,159.75161621,100.62,100.49,139.4767]
[1770014688081,148.3286,100.57,100.47,79.90994701]
[1770014688272,159.79881621,100.59,100.47,210.43674701]
[1770014688473,139.2771,100.64,100.53,139.4185]
[1770014688673,139.2771,100.64,100.52,139.4358]
[1770014688674,20.45321621,100.62,100.51,139.4474]
[1770014688979,20.45321621,100.62,100.46,70.93035416]
[1770014689184,20.45321621,100.62,100.42,139.5661]
[1770014689185,139.4442,100.52,100.42,70.93035416]
[1770014689376,139.4945,100.48,100.38,70.93035416]
[1770014689678,148.4776,100.47,100.38,70.93035416]
[1770014689885,139.4945,100.48,100.38,70.93035416]
[1770014690077,139.4933,100.48,100.4,70.93024002]
[1770014690676,139.4783,100.49,100.4,70.93024002]
[1770014691083,8.9665,100.49,100.4,219.50584002]
[1770014691282,557.6689,100.54,100.4,219.50584002]
[1770014691283,159.84531621,100.56,100.45,139.5232]
[1770014691479,159.84531621,100.56,100.44,210.2898449]
[1770014691480,139.4177,100.54,100.44,70.7518449]
[1770014691679,139.4621,100.51,100.4,210.3416449]
[1770014692086,139.4953,100.48,100.4,70.7518449]
[1770014692284,139.4378,100.52,100.42,210.32615689]
[1770014692483,20.45321621,100.53,100.42,210.32615689]
[1770014692789,148.3722,100.54,100.43,139.556]
[1770014693384,139.4509,100.51,100.42,70.75175689]
[1770014693585,20.45321621,100.53,100.43,139.5593]
[1770014693889,139.4229,100.53,100.43,139.5599]
[1770014694094,139.4243,100.53,100.43,139.5599]
[1770014694684,139.4243,100.53,100.42,210.32005689]
[1770014694685,148.401,100.52,100.42,70.75175689]
[1770014694881,8.964,100.52,100.42,70.75175689]
[1770014695084,8.964,100.52,100.42,210.32475689]
[1770014695288,170.15039052,100.55,100.44,139.5394]
[1770014695584,30.75549052,100.58,100.48,139.482]
[1770014695795,139.3668,100.57,100.47,139.4986]
[1770014695986,170.11159052,100.58,100.47,139.4986]
[1770014696185,178.98419052,100.64,100.54,148.3695]
[1770014696382,170.02749052,100.64,100.54,8.9616]
[1770014696590,139.3159,100.61,100.51,139.4459]
[1770014696989,278.6962,100.59,100.49,139.476]
[1770014697292,139.3252,100.6,100.49,139.476]
[1770014697492,170.11419052,100.58,100.47,139.5047]
[1770014697785,30.75549052,100.58,100.49,139.4734]
[1770014697989,179.07409052,100.58,100.47,148.4724]
[1770014698183,170.06789052,100.61,100.5,139.4634]
[1770014698385,179.02469052,100.61,100.52,8.9632]
[1770014698590,139.3271,100.6,100.5,139.4634]
[1770014698789,139.3534,100.58,100.49,71.15233395]
[1770014699288,30.75549052,100.61,100.53,139.4192]
[1770014699480,30.75549052,100.67,100.56,139.378]
[1770014699682,30.75549052,100.7,100.59,139.3358]
[1770014699986,139.2155,100.68,100.58,139.3525]
[1770014700185,139.2662,100.65,100.55,210.34126962]
[1770014700394,139.2121,100.69,100.59,139.3386]
[1770014700688,30.75549052,100.75,100.66,139.2403]
[1770014700891,139.0908,100.77,100.67,148.1721]
[1770014701189,139.1039,100.76,100.65,139.2551]
[1770014701390,139.0908,100.77,100.67,8.9503]
[1770014701391,139.0936,100.77,100.67,8.9503]
[1770014701584,139.0741,100.79,100.58,139.3411]
[1770014701585,139.2154,100.68,100.58,139.3411]
[1770014701788,139.2154,100.68,100.57,139.3647]
[1770014701988,139.2666,100.65,100.57,70.90349635]
[1770014702187,30.75549052,100.69,100.59,139.334]
[1770014702384,139.152,100.73,100.63,139.2826]
[1770014702593,30.75549052,100.74,100.65,139.255]
[1770014702791,139.1338,100.74,100.64,210.17059635]
[1770014702994,139.1338,100.74,100.64,70.90349635]
[1770014703184,139.0575,100.8,100.7,139.1836]
[1770014703389,139.035,100.81,100.71,148.1123]
[1770014703884,139.035,100.81,100.67,139.2177]
[1770014703885,148.0073,100.79,100.68,139.2082]
[1770014704091,139.1666,100.72,100.63,70.91553434]
[1770014704403,139.2484,100.66,100.59,70.91553434]
[1770014704694,139.2612,100.65,100.59,70.91553434]
[1770014704890,139.2171,100.68,100.59,70.91553434]
[1770014705099,169.98849052,100.67,100.57,139.3662]
[1770014705298,169.98539052,100.67,100.57,139.3662]
[1770014705491,139.3406,100.59,100.51,71.04719522]
[1770014705694,417.7975,100.65,100.47,71.04719522]
[1770014705695,139.3963,100.55,100.47,71.04719522]
[1770014705887,139.3963,100.55,100.44,210.59369522]
[1770014705888,139.4085,100.54,100.44,210.59369522]
[1770014706099,139.4085,100.54,100.44,71.04719522]
[1770014706100,139.4252,100.53,100.44,71.04719522]
[1770014706292,139.4513,100.51,100.44,71.04719522]
[1770014706600,139.4513,100.51,100.36,71.0470356]
[1770014706601,139.5399,100.45,100.36,71.0470356]
[1770014706793,139.5694,100.43,100.36,71.0470356]
[1770014706993,139.5472,100.44,100.34,139.6842]
[1770014707188,139.5611,100.43,100.34,70.55736786]
[1770014707394,139.6139,100.4,100.3,210.28786786]
[1770014707693,139.6255,100.39,100.3,70.55736786]
[1770014707888,139.6245,100.39,100.3,70.55736786]
[1770014708088,139.5766,100.42,100.32,139.7138]
[1770014708289,139.6187,100.39,100.28,210.3140092]
[1770014708593,139.7058,100.33,100.24,70.5579092]
[1770014708798,30.75549052,100.34,100.21,70.5579092]
[1770014709102,139.742,100.3,100.21,70.5579092]
[1770014709301,30.75549052,100.31,100.24,139.8251]
[1770014709500,139.7028,100.33,100.22,210.88766137]
[1770014709799,30.75549052,100.31,100.21,139.8668]
[1770014709999,170.44859052,100.34,100.24,139.8236]
[1770014710200,170.44859052,100.34,100.24,210.86009571]
[1770014710201,30.75549052,100.34,100.24,210.86009571]
[1770014710495,139.6726,100.35,100.25,139.8084]
[1770014710697,139.6295,100.39,100.27,139.783]
[1770014710898,139.5015,100.48,100.36,139.6572]
[1770014711097,139.5035,100.48,100.35,211.14166257]
[1770014711300,139.5366,100.45,100.32,139.7084]
[1770014711602,139.5756,100.42,100.31,71.48316257]
[1770014711902,139.5756,100.42,100.31,211.20136257]
[1770014712099,170.27939052,100.46,100.35,139.6667]
[1770014712398,139.497,100.48,100.37,139.6421]
[1770014712599,139.4504,100.51,100.41,139.587]
[1770014712805,139.4639,100.5,100.39,139.616]
[1770014713102,139.5555,100.44,100.34,139.6799]
[1770014713296,139.5805,100.42,100.32,71.42058171]
[1770014713498,30.75549052,100.4,100.31,139.7254]
[1770014713704,30.75549052,100.4,100.32,139.709]
[1770014713896,30.75549052,100.43,100.34,139.6781]
[1770014714093,139.5485,100.44,100.35,71.42033126]
[1770014714293,139.5196,100.46,100.36,139.6579]
[1770014714499,139.5897,100.41,100.31,211.13463126]
[1770014714699,139.6463,100.37,100.27,71.42033126]
[1770014715001,30.75549052,100.29,100.21,139.8664]
[1770014715192,170.51379052,100.29,100.19,211.30243126]
[1770014715391,30.75549052,100.29,100.21,139.8671]
[1770014715601,30.75549052,100.29,100.22,139.852]
[1770014715802,30.75549052,100.32,100.23,139.8342]
[1770014716197,170.47499052,100.32,100.22,139.8499]
[1770014716401,139.7283,100.31,100.21,139.8536]
[1770014716696,170.48009052,100.32,100.23,139.8374]
[1770014716697,30.75549052,100.32,100.23,139.8374]
[1770014716891,170.47689052,100.32,100.21,139.8663]
[1770014717094,170.46959052,100.32,100.22,139.8512]
[1770014717299,170.46959052,100.32,100.22,139.8521]
[1770014717505,30.75549052,100.32,100.24,139.8243]
[1770014717703,139.661,100.36,100.26,139.7974]
[1770014717898,30.75549052,100.38,100.3,139.7403]
[1770014718097,30.75549052,100.41,100.32,139.7122]
[1770014718301,139.5894,100.41,100.3,210.3804882]
[1770014718502,139.5894,100.41,100.32,139.7128]
[1770014718503,30.75549052,100.41,100.32,139.7128]
[1770014718800,139.6171,100.39,100.3,70.6397882]
[1770014719001,170.38639052,100.38,100.27,139.7712]
[1770014719204,170.38639052,100.38,100.27,139.7804]
[1770014719404,30.75549052,100.38,100.28,139.7678]
[1770014720000,30.75549052,100.38,100.31,139.7231]
[1770014720202,139.5752,100.42,100.31,139.7231]
[1770014720402,139.5777,100.42,100.32,139.7135]
[1770014720702,139.6066,100.4,100.29,139.7548]
[1770014720903,139.6066,100.4,100.28,70.7066442]
[1770014720904,139.6316,100.38,100.28,70.7066442]
[1770014721207,170.38709052,100.38,100.28,139.7676]
[1770014721407,170.38709052,100.38,100.27,139.7816]
[1770014721704,30.75549052,100.38,100.29,139.7553]
[1770014721902,558.2258,100.44,100.34,139.6848]
[1770014721903,30.75549052,100.44,100.34,139.6848]
[1770014722102,139.5656,100.43,100.32,139.7103]
[1770014722309,139.6036,100.4,100.3,70.76893063]
[1770014722503,139.6035,100.4,100.3,70.76893063]
[1770014722698,170.35019052,100.41,100.3,139.7413]
[1770014723004,170.34449052,100.41,100.3,139.7396]
[1770014723199,170.34449052,100.41,100.29,70.76893063]
[1770014723200,139.6337,100.38,100.29,70.76893063]
[1770014723406,30.75549052,100.41,100.31,139.7252]
[1770014723605,139.6034,100.4,100.3,139.7416]
[1770014723800,170.30859052,100.44,100.33,139.6975]
[1770014723998,139.624,100.39,100.31,70.61388321]
[1770014724204,139.6084,100.4,100.29,139.7553]
[1770014724410,170.25239052,100.48,100.37,139.6418]
[1770014724612,139.4901,100.49,100.38,139.6278]
[1770014724808,170.17369052,100.54,100.43,139.5604]
[1770014725008,170.13059052,100.57,100.46,139.5184]
[1770014725307,139.4254,100.53,100.42,139.571]
[1770014725613,139.4646,100.5,100.41,70.51723566]
[1770014725805,139.4801,100.49,100.41,70.51723566]
[1770014726205,170.16449052,100.54,100.42,70.51716816]
[1770014726505,170.12289052,100.57,100.45,139.5277]
[1770014726705,139.3817,100.56,100.45,139.5277]
[1770014727212,139.4492,100.52,100.4,467.82133473]
[1770014727410,139.5056,100.47,100.4,70.20133473]
[1770014727613,139.5056,100.47,100.36,209.85943473]
[1770014727809,139.5499,100.44,100.36,70.20133473]
[1770014728304,139.5059,100.47,100.37,70.20133814]
[1770014728510,30.75549052,100.51,100.41,139.5886]
[1770014728708,139.4546,100.51,100.42,70.20133814]
[1770014729210,139.4508,100.51,100.42,70.20133814]
[1770014729410,148.4032,100.52,100.42,70.20133814]
[1770014729807,139.4273,100.53,100.42,209.77573814]
[1770014730013,139.4273,100.53,100.43,139.5582]
[1770014730207,139.4642,100.5,100.4,139.6011]
[1770014730411,139.4715,100.5,100.41,70.14442129]
[1770014730711,139.5066,100.47,100.37,139.6431]
[1770014730906,148.4394,100.5,100.39,139.6134]
[1770014731107,139.5224,100.46,100.36,70.00858856]
[1770014731307,30.75549052,100.45,100.36,139.6505]
[1770014731606,139.5214,100.46,100.36,209.65908856]
[1770014731908,30.75549052,100.51,100.41,139.5819]
[1770014732106,170.17609052,100.54,100.44,139.5402]
[1770014732304,30.75549052,100.57,100.49,139.4722]
[1770014732503,139.3957,100.55,100.45,209.54133662]
[1770014732707,139.4087,100.54,100.45,70.00863662]
[1770014732907,139.4373,100.52,100.44,70.00863662]
[1770014733207,139.4091,100.54,100.43,139.5479]
[1770014733509,139.3795,100.57,100.47,139.5051]
[1770014733708,139.4085,100.54,100.46,70.12296817]
[1770014733912,139.4085,100.54,100.42,139.5623]
[1770014733913,139.4512,100.51,100.42,70.12296817]
[1770014734107,139.4784,100.49,100.38,209.74328998]
[1770014734313,139.4923,100.48,100.38,139.6294]
[1770014734517,139.4923,100.48,100.34,70.12298998]
[1770014734518,170.31919052,100.43,100.32,139.7018]
[1770014734705,139.5896,100.41,100.3,70.12298998]
[1770014734906,30.75549052,100.4,100.31,139.7244]
[1770014735106,139.6729,100.35,100.26,70.13415192]
[1770014735310,139.7025,100.33,100.22,70.13415192]
[1770014735517,139.7727,100.28,100.18,210.04225192]
[1770014735810,30.75549052,100.28,100.18,219.03625192]
[1770014736006,139.7838,100.27,100.18,70.13415192]
[1770014736212,30.75549052,100.31,100.21,139.8664]
[1770014736414,139.7118,100.33,100.22,139.8478]
[1770014736616,139.7118,100.33,100.21,139.863]
[1770014736617,139.7298,100.31,100.2,139.8797]
[1770014736820,139.742,100.3,100.2,210.01387129]
[1770014737010,139.7215,100.32,100.2,210.01387129]
[1770014737011,139.7118,100.33,100.23,139.8356]
[1770014737210,139.7008,100.33,100.23,139.8356]
[1770014737409,139.7152,100.32,100.21,139.8671]
[1770014737711,139.73,100.31,100.21,139.8671]
[1770014737911,139.7421,100.3,100.2,210.01467129]
[1770014738217,170.42499052,100.36,100.26,139.786]
[1770014738414,139.6596,100.36,100.26,210.10219407]
[1770014738614,139.7105,100.33,100.22,210.15809407]
[1770014738816,139.7205,100.32,100.22,210.15809407]
[1770014739016,139.6983,100.34,100.24,139.8252]
[1770014739219,139.6953,100.34,100.24,139.8252]
[1770014739410,139.674,100.35,100.25,70.54016674]
[1770014739612,139.7168,100.32,100.21,210.39366674]
[1770014739812,139.7077,100.33,100.23,139.8381]
[1770014740017,170.42629052,100.36,100.25,210.35148859]
[1770014740217,139.6708,100.36,100.26,139.7965]
[1770014740420,139.674,100.35,100.25,219.33928859]
[1770014740618,148.6496,100.36,100.25,219.33928859]
[1770014740814,148.6496,100.36,100.26,139.797]
[1770014741017,139.6399,100.38,100.27,139.7834]
[1770014741310,139.6455,100.37,100.29,70.21379414]
[1770014741517,139.668,100.36,100.26,139.7939]
[1770014742120,139.6729,100.35,100.26,70.21379476]
[1770014742518,139.6871,100.34,100.24,139.8243]
[1770014742716,139.716,100.32,100.22,70.21379476]
[1770014742915,139.7312,100.31,100.22,70.21379476]
[1770014743121,139.716,100.32,100.22,70.21379476]
[1770014743318,139.7164,100.32,100.24,69.933318]
[1770014743517,139.6865,100.34,100.24,209.753218]
[1770014743718,139.7045,100.33,100.24,69.933318]
[1770014743917,148.6667,100.34,100.24,209.758318]
[1770014744113,139.7144,100.32,100.24,69.933318]
[1770014744416,139.7146,100.32,100.22,209.78438731]
[1770014744621,170.45669052,100.33,100.23,139.8365]
[1770014744822,139.7175,100.32,100.22,209.78438731]
[1770014745220,148.7277,100.3,100.2,139.8806]
[1770014745420,148.7277,100.3,100.21,139.8667]
[1770014745421,30.75549052,100.3,100.21,139.8667]
[1770014745620,170.49769052,100.3,100.2,139.8797]
[1770014745921,139.7707,100.28,100.18,209.99968554]
[1770014746219,170.54049052,100.27,100.16,139.9266]
[1770014746428,139.759,100.29,100.19,139.8935]
[1770014746622,30.75549052,100.3,100.21,139.8664]
[1770014746920,139.7978,100.26,100.16,69.92224785]
[1770014747126,139.7558,100.29,100.19,139.8945]
[1770014747320,139.7558,100.29,100.19,139.8924]
[1770014747518,139.7897,100.27,100.17,209.84354785]
[1770014747722,139.7715,100.28,100.18,139.9071]
[1770014748018,139.8126,100.25,100.18,69.92221665]
[1770014748216,139.8056,100.26,100.18,69.92221665]
[1770014748421,170.51079052,100.3,100.2,139.8811]
[1770014748613,139.8273,100.24,100.15,69.92217172]
[1770014748815,139.812,100.25,100.15,209.87007172]
[1770014749019,139.812,100.25,100.15,69.92217172]
[1770014749322,139.7706,100.28,100.18,139.909]
[1770014749524,139.7842,100.27,100.17,139.9229]
[1770014749723,139.8131,100.25,100.16,69.93453107]
[1770014749927,139.8438,100.23,100.16,69.93453107]
[1770014750230,139.9383,100.16,100.06,11.78358636]
[1770014750528,30.75549052,100.18,100.09,140.0281]
[1770014750726,30.75549052,100.18,100.08,69.9346019]
[1770014751028,140.0633,100.07,99.974,140.1967]
[1770014751228,140.0501,100.08,99.974,140.1967]
[1770014751427,140.0867,100.06,99.967,140.2059]
[1770014751627,30.75549052,100.09,100.0,140.1546]
[1770014751817,170.76049052,100.12,100.02,140.1277]
[1770014752022,139.978,100.14,100.04,140.0996]
[1770014752228,140.0236,100.1,99.999,140.1618]
[1770014752419,140.0233,100.1,100.0,140.1471]
[1770014752625,140.0086,100.11,100.01,140.1466]
[1770014752921,30.75549052,100.13,99.98,23.53996904]
[1770014753120,30.75549052,100.13,99.943,140.2407]
[1770014753121,30.75549052,100.1,99.989,140.1752]
[1770014753327,140.0402,100.09,99.958,140.2192]
[1770014753528,30.75549052,100.1,99.964,140.2101]
[1770014753529,280.1736,100.06,99.964,140.2101]
[1770014753729,30.75549052,100.07,99.974,140.1961]
[1770014753932,30.75549052,100.07,99.954,140.2252]
[1770014754130,140.1069,100.04,99.944,140.2387]
[1770014754331,30.75549052,100.04,99.949,140.232]
[1770014754530,140.1509,100.01,99.91,149.305]
[1770014754733,140.1876,99.982,99.876,140.334]
[1770014755034,140.1766,99.989,99.887,140.3185]
[1770014755332,140.1203,100.03,99.927,140.2628]
[1770014755528,310.99129052,100.04,99.937,140.2479]
[1770014755730,310.99129052,100.04,99.927,140.2628]
[1770014755731,140.0644,100.07,99.967,140.2068]
[1770014755932,140.0644,100.07,99.967,140.2064]
[1770014756129,140.1081,100.04,99.923,140.2686]
[1770014756329,30.75549052,100.05,99.965,140.2098]
[1770014756535,160.77880688,100.07,99.965,140.2098]
[1770014756830,140.038,100.09,99.982,140.1848]
[1770014757023,140.091,100.05,99.952,140.2272]
[1770014757231,140.091,100.05,99.929,140.2592]
[1770014757232,140.1078,100.04,99.929,140.2592]
[1770014757426,160.77810688,100.07,99.96,140.2159]
[1770014757724,140.0775,100.06,99.964,140.2112]
[1770014757933,140.0498,100.08,99.984,140.1832]
[1770014758236,140.0498,100.08,99.974,140.1968]
[1770014758237,280.1677,100.06,99.955,140.2232]
[1770014758532,160.76510688,100.07,99.975,140.1955]
[1770014758533,20.70200688,100.07,99.975,140.1955]
[1770014758740,140.0974,100.05,99.947,140.2344]
[1770014759036,140.0974,100.05,99.825,421.2195]
[1770014759037,140.0795,100.06,99.958,140.2195]
[1770014759335,140.0391,100.09,99.982,140.1857]
[1770014759533,140.0391,100.09,99.992,140.1711]
[1770014759736,140.0211,100.1,99.994,140.1686]
[1770014760035,140.0211,100.1,100.0,140.1551]
[1770014760238,149.0135,100.11,100.01,140.1461]
[1770014760531,139.9639,100.15,100.0,140.1551]
[1770014760532,139.9639,100.15,100.05,140.0902]
[1770014760934,20.70200688,100.16,100.07,140.061]
[1770014761130,139.8955,100.19,100.09,140.0337]
[1770014761332,139.8948,100.2,100.1,140.0198]
[1770014761634,139.8751,100.21,100.11,140.0063]
[1770014761824,139.8751,100.21,100.08,140.0476]
[1770014761825,139.897,100.19,100.08,140.038]
[1770014762029,139.8984,100.19,100.09,140.0343]
[1770014762229,139.9512,100.15,100.05,140.0783]
[1770014762430,20.70200688,100.17,100.08,140.0477]
[1770014762631,148.9045,100.18,100.08,140.0481]
[1770014762928,160.59000688,100.2,100.1,140.0142]
[1770014763126,139.8855,100.2,100.1,140.0142]
[1770014763332,139.8855,100.2,100.08,140.0481]
[1770014763333,20.70200688,100.23,100.14,139.9646]
[1770014763530,160.51150688,100.26,100.16,139.9339]
[1770014763730,148.771,100.27,100.17,139.9219]
[1770014763933,139.8264,100.24,100.14,139.965]
[1770014764130,139.8264,100.24,100.13,139.9687]
[1770014764434,20.70200688,100.29,100.2,139.8796]
[1770014764640,139.7575,100.29,100.18,148.9017]
[1770014764839,148.7268,100.3,100.19,139.8916]
[1770014765036,139.7572,100.29,100.19,139.8916]
[1770014765239,139.7194,100.32,100.19,139.8916]
[1770014765240,160.41680688,100.32,100.22,139.8523]
[1770014765434,139.7123,100.33,100.22,139.8523]
[1770014765633,20.70200688,100.32,100.21,139.8629]
[1770014765833,139.6564,100.37,100.26,139.7974]
[1770014766040,139.6448,100.37,100.27,139.7826]
[1770014766339,139.6202,100.39,100.27,139.7826]
[1770014766340,139.6167,100.39,100.28,139.7654]
[1770014766540,160.29090688,100.41,100.3,139.739]
[1770014766731,139.6306,100.38,100.28,139.7654]
[1770014766933,139.6306,100.38,100.28,139.7674]
[1770014767130,139.6327,100.38,100.28,139.7674]
[1770014767333,139.6177,100.39,100.28,139.7688]
[1770014767538,139.6177,100.39,100.28,139.768]
[1770014767539,139.6389,100.38,100.28,139.768]
[1770014767740,139.6867,100.34,100.24,139.8158]
[1770014767943,139.6318,100.38,100.27,139.783]
[1770014768242,139.6868,100.34,100.24,139.8158]
[1770014768538,139.7341,100.31,100.2,139.8675]
[1770014768736,139.7143,100.32,100.19,139.892]
[1770014768935,139.6868,100.34,100.2,139.8798]
[1770014769143,139.6567,100.37,100.24,139.824]
[1770014769346,558.3938,100.41,100.27,139.7813]
[1770014769347,139.6033,100.4,100.27,139.7813]
[1770014769636,139.6033,100.4,100.26,139.7973]
[1770014769838,139.5931,100.41,100.27,160.48370688]
[1770014770040,139.5931,100.41,100.24,139.8125]
[1770014770041,139.6203,100.39,100.25,139.8114]
[1770014770340,139.5931,100.41,100.27,160.48060688]
[1770014770544,160.24570688,100.45,100.32,139.7127]
[1770014770545,139.5437,100.45,100.32,139.7127]
[1770014770746,139.564,100.43,100.3,20.70200688]
[1770014770933,139.5918,100.41,100.28,160.47150688]
[1770014771142,139.6077,100.4,100.28,20.70200688]
[1770014771441,139.5893,100.41,100.28,20.70200688]
[1770014771644,148.5506,100.42,100.28,160.47070688]
[1770014771843,139.5653,100.43,100.27,124.0]
[1770014771844,139.6532,100.37,100.27,124.0]
[1770014772034,139.6203,100.39,100.26,139.7969]
[1770014772346,139.5762,100.42,100.29,139.7548]
[1770014772547,148.5305,100.44,100.3,139.7415]
[1770014772842,139.6042,100.4,100.28,20.70200688]
[1770014773144,139.6035,100.4,100.28,20.70200688]
[1770014773338,139.5477,100.44,100.3,139.7391]
[1770014773534,139.5384,100.45,100.32,139.7118]
[1770014773745,139.5752,100.42,100.29,139.7496]
[1770014773942,139.6185,100.39,100.26,263.7855]
[1770014774139,139.5749,100.42,100.29,139.7519]
[1770014774339,139.5907,100.41,100.28,160.46400688]
[1770014774536,139.6307,100.38,100.26,124.0]
[1770014774740,139.619,100.39,100.26,139.796]
[1770014775243,139.5743,100.43,100.3,139.7409]
[1770014775438,139.5892,100.41,100.28,160.47070688]
[1770014775637,139.6039,100.4,100.29,6.31374131]
[1770014775841,139.6171,100.39,100.26,148.7835]
[1770014776046,139.6039,100.4,100.27,146.09182494]
[1770014776242,148.6094,100.38,100.25,160.51240688]
[1770014776835,139.5873,100.42,100.29,139.7519]
[1770014777142,139.6041,100.4,100.28,20.70200688]
[1770014777342,139.589,100.41,100.28,139.7671]
[1770014777544,139.5873,100.42,100.29,146.07919387]
[1770014777842,139.5814,100.42,100.3,146.05730219]
[1770014778136,139.5814,100.42,100.3,139.7397]
[1770014778339,139.6596,100.36,100.25,20.70200688]
[1770014778544,139.6722,100.35,100.23,139.8332]
[1770014778744,139.6908,100.34,100.21,139.864]
[1770014778940,139.7073,100.33,100.22,6.31400834]
[1770014779142,139.7281,100.31,100.19,558.87630688]
[1770014779344,139.6908,100.34,100.22,139.8517]
[1770014779544,139.6715,100.36,100.24,139.8216]
[1770014779846,139.6715,100.36,100.24,139.8253]
[1770014780047,139.6892,100.34,100.22,160.54640688]
[1770014780243,139.718,100.32,100.23,6.3109669]
[1770014780548,139.6892,100.34,100.22,139.852]
[1770014780742,139.6707,100.36,100.23,139.8368]
[1770014780942,139.6867,100.34,100.21,139.8576]
[1770014781144,139.7007,100.33,100.22,6.3110886]
[1770014781344,139.6726,100.35,100.23,146.14268044]
[1770014781648,139.6583,100.36,100.24,146.12876774]
[1770014781844,139.7286,100.31,100.22,20.70200688]
[1770014782044,139.7286,100.31,100.2,139.8675]
[1770014782245,139.7773,100.28,100.19,398.28]
[1770014782549,139.7562,100.29,100.19,398.28]
[1770014782750,139.7286,100.31,100.2,146.19297861]
[1770014782944,139.718,100.32,100.21,146.17950292]
[1770014783250,148.6626,100.35,100.24,139.8245]
[1770014783449,139.658,100.37,100.25,146.11725285]
[1770014783648,139.6596,100.36,100.26,6.30595285]